[Event "1st Chessable Sunway Formentera 2022"]
[Site "Formentera Punta Prima"]
[Date "2022.05.03"]
[Round "5"]
[White "Follana Albelda, Lucia"]
[Black "Song, Julien"]
[Result "0-1"]
[ECO "B15"]
[WhiteElo "2039"]
[BlackElo "2388"]
[Annotator "TA"]
[PlyCount "96"]
[EventDate "2022.05.05"]
[EventType "swiss"]
[EventCountry "ESP"]
[SourceTitle "playchess.com"]
[Source "ChessBase"]
[SourceQuality "1"]
[TimeControl "40/5400+30:1800+30"]

{[%evp 9,96,31,27,6,7,-26,-21,-20,4,6,16,-16,-22,-32,-33,-32,25,-16,43,-47,0,8,33,36,39,-7,17,0,29,0,-4,0,16,16,10,17,8,14,16,14,14,13,14,6,18,0,0,0,0,0,8,0,0,-35,-20,-70,-70,-70,0,0,0,0,0,-39,-36,-39,-37,-41,-45,-239,-239,-237,-236,-307,-295,-425,-368,-377,-369,-339,-307,-867,-840,-867,-866,-1093,-1078,-1000,-983]} 1. e4 {[%emt 1:15:53]} c6 {[%emt 1:30:22]} 2. d4 {[%emt 0:15:29]} d5 {[%emt 0:00:54]} 3. Nc3 {[%emt 0:00:29]} dxe4 {[%emt 0:00:00]} 4. Nxe4 {[%emt 0:00:33]} Nf6 {[%emt 0:00:33]} 5. Nxf6+ {[%emt 0:00:17]} exf6 {[%emt 0:00:40]} 6. Ne2 {[%emt 0:00:00][%cal Bg1e2,Be2g3,Bg3f5][%mdl 32] B15: Caro-Kann: 3 Nc3: 3...g6 and 3...dxe4 4 Nxe4 Nf6 5 Nxf6+ exf6.} Bd6 {[%emt 0:00:00]} 7. Ng3 {[%emt 0:00:00]} O-O {[%emt 0:00:00]} 8. Be2 {[%emt 0:00:47] The position is equal.} Re8 {[%emt 0:00:00]} 9. O-O {[%emt 0:01:06]} Nd7 {[%emt 0:02:05] [#]} 10. Nf5 $146 {[%emt 0:00:00]} ({Predecessor:} 10. c4 Nf8 11. b3 Be6 12. Bb2 Rc8 13. Qc2 Bb8 14. Rad1 Qc7 15. Rfe1 Ng6 16. Qc3 {0-1 (32) Ankerst,M (2370)-Musovic,A (2338) Chess.com INT 2022}) 10... Bc7 {[%emt 0:00:00]} 11. Bd3 {[%emt 0:00:00]} Nf8 {[%emt 0:00:00]} 12. c3 {[%emt 0:00:00]} Be6 {[%emt 0:00:00]} (12... g6 $15 13. Ne3 (13. Nh6+ Kg7 $11) 13... f5) 13. Be3 {[%emt 0:00:00]} Qb8 {[%emt 0:00:00]} ({Black should play} 13... g6 $11 14. Nh6+ Kg7) 14. h4 {[%emt 0:01:14]} (14. g3 $14) 14... Bxf5 {[%emt 0:00:00]} ({Better is} 14... g6 $1 $15 15. Ng3 (15. Nh6+ Kg7 $17) 15... Bxg3 16. fxg3 Qxg3) 15. Bxf5 $11 {[%emt 0:00:00]} g6 {[%emt 0:03:20]} 16. Bc2 {[%emt 0:00:00]} f5 {[%emt 0:00:02]} 17. Bh6 {[%emt 0:01:49]} (17. Qf3 $14) 17... Ne6 {[%emt 0:00:00]} (17... Bh2+ {looks sharper.} 18. Kh1 Bf4 19. Bxf8 Kxf8 20. g3 Bxg3 21. fxg3 Qxg3 22. Qf3 Qxh4+ 23. Kg1 Kg7) 18. Qf3 {[%emt 0:00:00]} Bh2+ {[%emt 0:00:00]} 19. Kh1 {[%emt 0:02:08] [#] aiming for g3.} Bf4 {[%emt 0:01:59]} 20. Bxf4 {[%emt 0:00:00]} Qxf4 {[%emt 0:00:00]} 21. Qxf4 {[%emt 0:00:00]} Nxf4 {[%emt 0:01:03]} 22. Rfe1 {[%emt 0:01:05]} Kg7 {[%emt 0:00:00]} 23. g3 {[%emt 0:00:00]} Nd5 {[%emt 0:00:00][%cal Bf4d5,Bd5f6,Bf6e4][%mdl 32]} 24. Bb3 {[%emt 0:00:00]} Nf6 {[%emt 0:00:44]} 25. Kg2 {[%emt 0:01:31]} Ne4 {[%emt 0:00:00]} 26. Re2 {[%emt 0:00:00]} Nd6 {[%emt 0:01:09]} 27. Rae1 {[%emt 0:00:44]} Rxe2 {[%emt 0:01:00]} 28. Rxe2 {[%emt 0:01:02][%mdl 4096] Endgame KRB-KRN} Kf6 {[%emt 0:00:37]} 29. Re5 {[%emt 0:00:00]} h6 {[%emt 0:00:00]} 30. f4 {[%emt 0:00:00]} Rg8 {[%emt 0:00:00]} 31. c4 {[%emt 0:00:00]} Rd8 {[%emt 0:00:00]} 32. a3 {[%emt 0:00:00]} (32. Re1 $11) 32... Ne4 $15 {[%emt 0:01:29]} 33. d5 {[%emt 0:02:29]} c5 {[%emt 0:00:00] Black is more active.} (33... cxd5 $15 34. Rxd5 Rxd5 35. cxd5 Ke7) 34. Bc2 $11 {[%emt 0:00:00]} Nd6 {[%emt 0:01:21]} 35. Bd3 {[%emt 0:00:56]} a6 {[%emt 0:00:00]} 36. b4 {[%emt 0:00:00]} Rc8 {[%emt 0:00:38]} 37. bxc5 {[%emt 0:00:00]} Rxc5 {[%emt 0:01:02] White must now prevent ...b5.} 38. h5 $1 {[%emt 0:00:48]} Nxc4 {[%emt 0:00:00]} 39. Re1 {[%emt 0:00:00] [#] White does not recover from this.} (39. Bxc4 $15 Rxc4 40. hxg6 Kxg6 41. Re8) 39... Nd6 $19 {[%emt 0:00:00]} ({Not} 39... Nxa3 $2 40. hxg6 Rxd5 41. gxf7 Kxf7 42. Be2) ({Inferior is} 39... gxh5 40. Bxc4 Rxc4 41. Rd1) 40. hxg6 {[%emt 0:01:55]} Kxg6 {[%emt 0:00:50]} ({Worse is} 40... Rxd5 41. gxf7 Kxf7 42. Re3 $17) 41. Re5 {[%emt 0:28:50]} Rc3 {[%emt 0:25:34][%csl LRa3,LRd3]} 42. Bb1 {[%emt 0:01:37]} (42. Re3 {is a better defense.} Kf6 43. a4) 42... Rb3 {[%emt 0:01:04]} 43. Re1 {[%emt 0:00:50]} Rxa3 {[%emt 0:03:40]} 44. g4 {[%emt 0:00:48]} Kf6 {[%emt 0:01:55]} 45. gxf5 {[%emt 0:00:08]} (45. Bxf5 Nxf5 46. gxf5) 45... Ra1 {[%emt 0:00:00] Black is clearly winning.} 46. Rh1 {[%emt 0:00:48]} h5 {[%emt 0:01:04]} 47. Rg1 {[%emt 0:00:00]} a5 {[%emt 0:00:00][%cal Ba6a5,Ba5a4][%mdl 32]} 48. Kf3 {[%emt 0:00:45]} a4 {[%emt 0:00:12] Weighted Error Value: White=0.44/Black=0.13 (very precise)} 0-1

[Event "1st Chessable Sunway Formentera 2022"]
[Site "Formentera Punta Prima"]
[Date "2022.05.04"]
[Round "6"]
[White "Gukesh D"]
[Black "Santos Ruiz, Miguel"]
[Result "1/2-1/2"]
[ECO "D50"]
[WhiteElo "2659"]
[BlackElo "2586"]
[Annotator "TA"]
[PlyCount "57"]
[EventDate "2022.05.05"]
[EventType "swiss"]
[EventCountry "ESP"]
[SourceTitle "playchess.com"]
[Source "ChessBase"]
[SourceQuality "1"]
[TimeControl "40/5400+30:1800+30"]

{[%evp 14,57,21,14,18,10,18,21,26,0,0,0,-8,-4,0,-12,-8,-15,-8,-30,-33,-34,-35,-30,-41,-41,0,0,0,-40,-39,-59,-79,-95,-95,-64,-65,-129,-47,-95,0,-129,0,-112,0,-123]} 1. d4 {[%emt 0:42:25]} Nf6 {[%emt 0:45:40]} 2. c4 {[%emt 0:00:30]} e6 {[%emt 0:00:06]} 3. Nf3 {[%emt 0:00:16]} d5 {[%emt 0:00:30]} 4. Nc3 {[%emt 0:00:05]} c5 {[%emt 0:00:05]} 5. cxd5 {[%emt 0:00:05]} cxd4 {[%emt 0:00:05]} 6. Qxd4 {[%emt 0:00:05]} exd5 {[%emt 0:00:30]} 7. Bg5 {[%emt 0:00:05]} Be7 {[%emt 0:00:30]} 8. e3 {[%emt 0:00:05]} O-O {[%emt 0:00:05] D50: Queen's Gambit Declined: Dutch-Peruvian Gambit.} 9. Rd1 {[%emt 0:00:05]} Nc6 {[%emt 0:00:05]} 10. Qa4 {[%emt 0:00:05]} h6 {[%emt 0:00:05]} 11. Bh4 {[%emt 0:00:30]} (11. Bxf6 $5 Bxf6 12. Nxd5 $11) 11... Qb6 {[%emt 0:00:06] [#] White must now prevent ...g5.} 12. Bb5 $146 {[%emt 0:00:09]} ({Predecessor:} 12. Qb5 Qxb5 13. Bxb5 Be6 14. O-O Rfd8 15. Bd3 Kf8 16. Nb5 Bg4 17. Be2 Rac8 18. Rc1 {1-0 (54) Kunin,V (2548)-Herb,P (2259) France 2008}) 12... a6 {[%emt 0:00:05][%cal Oa6b5]} 13. Bxc6 {[%emt 0:00:30]} bxc6 {[%emt 0:00:05][%cal Bb7c6,Bc6c5,Bc5c4][%mdl 32]} 14. Qc2 {[%emt 0:00:30]} Bg4 {[%emt 0:00:05]} 15. O-O {[%emt 0:00:11]} Rfd8 {[%emt 0:00:30]} 16. Ne2 {[%emt 0:00:05]} c5 {[%emt 0:00:05]} 17. Ne5 {[%emt 0:00:05][%cal Bf3e5,Be5d3,Bd3f4][%mdl 32]} Bxe2 {[%emt 0:00:05]} 18. Qxe2 {[%emt 0:00:30]} Qe6 {[%emt 0:00:06]} 19. Nd3 {[%emt 0:00:30]} c4 {[%emt 0:00:04] [#] Strongly threatening ...g5.} 20. Nf4 {[%emt 0:00:05]} Qe5 {[%emt 0:00:05] ...g5 is the strong threat.} 21. Bg3 {[%emt 0:08:16][%cal Of4d5] Hoping for Nxd5!} (21. Bxf6 $5 Bxf6 22. Qf3 $11) 21... Qf5 {[%emt 0:01:12]} 22. Qe1 {[%emt 0:00:11]} a5 {[%emt 0:14:27]} 23. Ne2 {[%emt 0:00:05]} Ne4 {[%emt 0:01:27]} 24. Nd4 {[%emt 0:00:45]} Qd7 {[%emt 0:07:00]} 25. Qe2 {[%emt 0:01:11]} (25. Be5 $15) 25... Nc5 {[%emt 0:04:12]} (25... Bf6 $17 26. f3 Nxg3 27. hxg3 Qd6) 26. Qc2 {[%emt 0:00:21]} (26. b3 $15 {is more appropriate.}) 26... Ne4 {[%emt 0:00:30]} 27. Qe2 {[%emt 0:00:04]} Nc5 {[%emt 0:00:21]} 28. Qc2 $1 {[%emt 0:00:30]} Ne4 {[%emt 0:00:30]} 29. Qe2 {[%emt 0:00:06] Weighted Error Value: White=0.11 (very precise) /Black=0.21 (precise)} 1/2-1/2

[Event "1st Chessable Sunway Formentera 2022"]
[Site "Formentera Punta Prima"]
[Date "2022.05.04"]
[Round "6"]
[White "Sasikiran, Krishnan"]
[Black "Santos Latasa, Jaime"]
[Result "0-1"]
[ECO "C78"]
[WhiteElo "2651"]
[BlackElo "2672"]
[Annotator "TA"]
[PlyCount "64"]
[EventDate "2022.05.05"]
[EventType "swiss"]
[EventCountry "ESP"]
[SourceTitle "playchess.com"]
[Source "ChessBase"]
[SourceQuality "1"]
[TimeControl "40/5400+30:1800+30"]

{[%evp 23,64,14,7,0,0,0,0,0,-7,-6,30,25,15,38,29,35,26,28,15,0,0,0,216,28,50,-66,-67,-105,-95,-106,-100,-177,-183,-187,-189,-165,-160,-220,-179,-170,-169,-287,-287]} 1. e4 {[%emt 0:00:14]} e5 {[%emt 0:00:07]} 2. Nf3 {[%emt 0:00:11]} Nc6 {[%emt 0:00:05]} 3. Bb5 {[%emt 0:00:12]} a6 {[%emt 0:00:06]} 4. Ba4 {[%emt 0:00:09]} Nf6 {[%emt 0:00:06]} 5. O-O {[%emt 0:00:13]} b5 {[%emt 0:00:04]} 6. Bb3 {[%emt 0:00:12]} Bc5 {[%emt 0:00:06]} 7. a4 {[%emt 0:04:03]} Rb8 {[%emt 0:00:13]} 8. c3 {[%emt 0:01:13]} d6 {[%emt 0:00:08]} 9. d4 {[%emt 0:00:24]} Bb6 {[%emt 0:00:12]} 10. h3 {[%emt 0:03:44]} O-O {[%emt 0:02:19]} 11. Re1 {[%emt 0:03:05]} Bb7 {[%emt 0:03:46]} 12. axb5 {[%emt 0:13:08]} axb5 {[%emt 0:00:22][%cal Ba6b5,Bb5b4][%mdl 32]} 13. Na3 {[%emt 0:00:31] C78: Ruy Lopez: Archangelsk and Möller Defences.} exd4 {[%emt 0:01:52]} 14. cxd4 {[%emt 0:01:24][%cal Bc3d4,Bd4d5][%mdl 32]} Na5 {[%emt 0:00:05]} 15. Bc2 {[%emt 0:02:50] The position is equal.} b4 {[%emt 0:00:08]} 16. Nb1 {[%emt 0:05:21]} (16. Nb5 Qd7 17. e5 dxe5 18. dxe5 Qxb5 $15) 16... c5 {[%emt 0:09:17][%cal Ob4b3]} 17. d5 $1 {[%emt 0:08:25]} c4 {[%emt 0:04:29]} 18. Nbd2 {[%emt 0:05:17] [#]} Ba6 $146 {[%emt 0:01:44]} ({Predecessor:} 18... Bc5 19. Nf1 b3 20. Bb1 c3 21. bxc3 Bxd5 22. Bg5 b2 23. Rxa5 Bb3 24. Qd3 Qxa5 25. Bxf6 {1-0 (50) Adamowicz,K (2123)-Varga,K (2208) Pardubice 2010}) 19. b3 {[%emt 0:07:14]} Bc5 {[%emt 0:09:38] And now ...Qb6 would win.} 20. bxc4 {[%emt 0:13:39] Hoping for e5.} Qb6 {[%emt 0:01:05]} 21. Bb2 {[%emt 0:09:25] aiming for Bxf6.} Bxf2+ {[%emt 0:02:05]} 22. Kh2 {[%emt 0:00:26] Threatens to win with Re2.} Nd7 $2 {[%emt 0:19:56]} ({Don't do} 22... Nxc4 23. Bxf6 gxf6 24. Rxa6 Qxa6 25. Bd3 $14) (22... Nh5 $1 $11 {and Black has nothing to worry.}) 23. Re2 $2 {[%emt 0:04:58]} (23. e5 $1 $18 {[%cal Re5e6]}) 23... Bc5 $11 {[%emt 0:03:23]} 24. Bb3 {[%emt 0:08:11]} ({White should play} 24. Bd3 $14 b3 25. e5 dxe5 26. Qb1 (26. Nxe5 Bd6 $11)) 24... f6 $15 {[%emt 0:04:22]} 25. Nh4 {[%emt 0:04:21]} Ne5 $36 {[%emt 0:00:27][%cal Ra6c4][%mdl 2048] Black has strong initiative.} 26. Qc2 {[%emt 0:01:15]} Rbc8 {[%emt 0:02:16][%cal Oe5c4] Black is more active.} 27. Nhf3 {[%emt 0:02:39]} (27. Bxe5 $17 fxe5 28. Nhf3) 27... Nxb3 {[%emt 0:01:26]} 28. Qxb3 {[%emt 0:00:19] [#]} Bxc4 $1 {[%emt 0:00:54][%mdl 512]} 29. Nxc4 {[%emt 0:00:09]} Nxc4 {[%emt 0:00:05]} 30. Bc1 {[%emt 0:00:46]} ({Avoid the trap} 30. Qxc4 $2 {[#]} Bg1+ $1 {[%mdl 512]} 31. Rxg1 Rxc4 $19) (30. Qd3 $17) 30... Ne5 {[%emt 0:00:24]} 31. Bb2 {[%emt 0:00:39]} Qb5 {[%emt 0:00:36]} 32. Rc2 {[%emt 0:00:51]} (32. Qd1 {keeps fighting.}) 32... Qd3 {[%emt 0:01:33] Weighted Error Value: White=0.32/Black=0.19 (very precise)} 0-1

[Event "1st Chessable Sunway Formentera 2022"]
[Site "Formentera Punta Prima"]
[Date "2022.05.04"]
[Round "6"]
[White "Yankelevich, Lev"]
[Black "Neiman, Emmanuel"]
[Result "1-0"]
[ECO "D36"]
[WhiteElo "2473"]
[BlackElo "2248"]
[Annotator "TA"]
[PlyCount "71"]
[EventDate "2022.05.05"]
[EventType "swiss"]
[EventCountry "ESP"]
[SourceTitle "playchess.com"]
[Source "ChessBase"]
[SourceQuality "1"]
[TimeControl "40/5400+30:1800+30"]

{[%evp 26,71,38,34,39,41,58,-5,83,90,81,104,109,93,135,130,140,129,139,134,183,106,126,113,116,123,181,122,135,66,131,140,158,160,222,219,340,337,568,558,569,570,560,534,547,514,570,559]} 1. d4 {[%emt 0:00:02]} Nf6 {[%emt 0:00:07]} 2. c4 {[%emt 0:00:20]} e6 {[%emt 0:00:09]} 3. Nc3 {[%emt 0:00:26]} d5 {[%emt 0:00:17]} 4. cxd5 {[%emt 0:00:09]} exd5 {[%emt 0:00:04]} 5. Bg5 {[%emt 0:00:05]} Be7 {[%emt 0:00:38]} 6. e3 {[%emt 0:00:06]} O-O {[%emt 0:00:11]} 7. Bd3 {[%emt 0:00:10]} c6 {[%emt 0:00:39]} 8. h3 {[%emt 0:00:08]} Nbd7 {[%emt 0:00:29]} 9. Qc2 {[%emt 0:01:03]} Re8 {[%emt 0:00:24]} 10. Bf4 {[%emt 0:02:14]} Nf8 {[%emt 0:00:41]} 11. Nf3 {[%emt 0:00:07]} Ng6 {[%emt 0:02:22]} 12. Bh2 {[%emt 0:00:32]} Bd6 {[%emt 0:00:12]} 13. Bxd6 {[%emt 0:02:52]} Qxd6 {[%emt 0:00:06]} 14. O-O-O {[%emt 0:05:45]} Bd7 {[%emt 0:08:11] D36: Queen's Gambit Declined: Exchange Variation: Main line (5 Bg5 c6 6 Qc2).} 15. g4 {[%emt 0:02:22][%cal Bg2g4,Bg4g5][%mdl 32]} Qe7 {[%emt 0:05:01]} 16. Nd2 {[%emt 0:11:57] [#]} (16. Kb1 $14) 16... Red8 $146 {[%emt 0:07:34]} (16... Nh4 $1 $11) ({Predecessor:} 16... Rac8 17. g5 Ne4 18. Ndxe4 dxe4 19. Bxe4 b5 20. Bf5 Bxf5 21. Qxf5 a6 22. Kb1 Nf8 {1-0 (52) Kharitonov,A (2540)-Roeder,M (2380) Benasque 2019}) 17. g5 $16 {[%emt 0:05:15]} Ne8 {[%emt 0:00:04]} 18. h4 {[%emt 0:00:04]} Bg4 {[%emt 0:04:11]} 19. Rde1 {[%emt 0:11:14]} Bh5 {[%emt 0:00:43]} 20. f4 $1 {[%emt 0:04:39][%cal Bf2f4,Bf4f5][%mdl 32]} Nf8 {[%emt 0:02:02]} 21. f5 {[%emt 0:07:05]} Qc7 {[%emt 0:00:02]} 22. Kb1 {[%emt 0:14:30]} Rac8 {[%emt 0:04:03] [#]} (22... Qg3 $16) 23. Rhg1 {[%emt 0:03:44]} (23. Nf1 $1 $18) 23... c5 {[%emt 0:07:47]} 24. dxc5 {[%emt 0:01:04]} Qxc5 {[%emt 0:00:34]} 25. Nb3 {[%emt 0:00:15]} Qb6 {[%emt 0:03:08]} (25... Qb4 $16 {is a better defense.}) 26. Nd4 {[%emt 0:00:14]} ({White should try} 26. Qg2 $18) 26... Kh8 {[%emt 0:02:37]} 27. Qb3 {[%emt 0:02:24]} (27. Qd2 $16) 27... Qd6 {[%emt 0:01:52]} (27... Qxb3 $14 28. axb3 Nc7) 28. Ncb5 {[%emt 0:01:12] White is much more active. The black rooks are badly placed.} (28. Qxb7 $2 {[#]} Rxc3 $1 {[%mdl 512]} 29. Bb5 (29. bxc3 $2 Rb8 $19) 29... Rc7 $19) 28... Qb8 {[%emt 0:03:40]} 29. Qa3 {[%emt 0:00:27][%csl LRa7,LRf8][%cal Ra3f8]} Nd7 {[%emt 0:02:09]} (29... Nd6 $16 {was called for.} 30. Qxa7 (30. Nxa7 Nc4 $16) 30... Nxb5 31. Qxb8 (31. Nxb5 Qh2 $16) 31... Na3+ 32. bxa3 Rxb8) 30. Nxa7 $18 {[%emt 0:02:12]} ({Don't play} 30. Qxa7 $6 Qe5 31. Ka1 (31. Qxb7 Nc5 $15) 31... Ra8 32. Qxb7 Rab8 $16) 30... Rc5 {[%emt 0:00:12]} (30... Rc7 $142 31. Nab5 Rc5) 31. Bb5 {[%emt 0:03:15] aiming for Bxd7.} Qc7 {[%emt 0:06:14]} (31... Qd6 32. Bxd7 Rxd7) 32. Bxd7 {[%emt 0:00:21] White is clearly winning.} Rxd7 {[%emt 0:00:08]} 33. Nb3 {[%emt 0:02:44] Pair of Knights!} b6 {[%emt 0:00:19] [#]} 34. Nb5 {[%emt 0:00:17][%mdl 512]} Qc8 {[%emt 0:00:51]} 35. Nxc5 {[%emt 0:01:16]} bxc5 {[%emt 0:00:07]} 36. Rc1 {[%emt 0:00:05] Weighted Error Value: White=0.11 (very precise) /Black=0.45} 1-0

[Event "1st Chessable Sunway Formentera 2022"]
[Site "Formentera Punta Prima"]
[Date "2022.05.04"]
[Round "6"]
[White "Vrolijk, Liam"]
[Black "Papadiamandis, Elliot"]
[Result "1-0"]
[ECO "B94"]
[WhiteElo "2467"]
[BlackElo "2373"]
[Annotator "TA"]
[PlyCount "99"]
[EventDate "2022.05.05"]
[EventType "swiss"]
[EventCountry "ESP"]
[SourceTitle "playchess.com"]
[Source "ChessBase"]
[SourceQuality "1"]
[TimeControl "40/5400+30:1800+30"]

{[%evp 11,99,6,25,0,33,8,11,0,-10,-22,42,51,71,43,52,54,52,0,13,13,19,-8,0,0,0,0,0,0,10,9,13,11,6,7,15,11,20,8,0,0,0,0,161,145,164,172,170,165,439,417,397,397,372,255,257,217,341,314,328,316,359,356,392,384,515,501,456,477,704,517,480,476,893,824,1342,1302,1286,1099,1585,1112,29974,12838,5714,9448,12841,12842,29984,12843,12842,479]} 1. e4 {[%emt 0:00:03]} c5 {[%emt 0:00:14]} 2. Nf3 {[%emt 0:00:08]} d6 {[%emt 0:00:14]} 3. d4 {[%emt 0:00:08]} cxd4 {[%emt 0:00:17]} 4. Nxd4 {[%emt 0:00:09]} Nf6 {[%emt 0:00:22]} 5. Nc3 {[%emt 0:00:08]} a6 {[%emt 0:00:13]} 6. Bg5 {[%emt 0:00:08]} Nbd7 {[%emt 0:00:49]} 7. Be3 {[%emt 0:00:08] [#] 7.Qe2 is a critical line. B94: Sicilian Najdorf: 6 Bg5 Nbd7.} Nc5 $146 {[%emt 0:15:07]} ({Predecessor:} 7... b5 8. a4 bxa4 9. Be2 Bb7 10. Rxa4 Nc5 11. Rb4 Qa5 12. Rxb7 Nxb7 13. O-O g6 14. b4 Qc7 {½-½ (122) Dardha,D (2532)-Bjerre,J (2586) Wijk aan Zee 2022}) 8. Qf3 {[%emt 0:15:00]} g6 {[%emt 0:15:25]} 9. h3 {[%emt 0:04:36] The position is equal.} Bg7 {[%emt 0:00:57]} 10. O-O-O {[%emt 0:00:14][%cal Oe4e5]} Nfd7 {[%emt 0:12:50]} (10... Bd7 $11) 11. g4 $14 {[%emt 0:01:34]} Ne6 {[%emt 0:12:33]} 12. Be2 {[%emt 0:04:43] White is more active.} Ne5 {[%emt 0:06:24]} 13. Qg3 {[%emt 0:04:04][%cal Od4f5]} Nc6 $1 {[%emt 0:01:48][%cal Re6d4]} 14. Nxe6 {[%emt 0:01:54]} ({Better is} 14. Nb3 $14) 14... Bxe6 {[%emt 0:03:44]} 15. Nd5 {[%emt 0:00:21]} Qa5 {[%emt 0:03:02]} 16. a3 {[%emt 0:07:58]} O-O {[%emt 0:02:25]} (16... Rc8 $5 {[%cal Re6d5]}) 17. Nb6 {[%emt 0:12:51] Inhibits Rfc8.} Nb4 {[%emt 0:03:52]} 18. axb4 {[%emt 0:06:37]} (18. Nxa8 $2 Na2+ 19. Kb1 Nc3+ $1 {[%mdl 512]} 20. Ka1 Nxe2 $19) 18... Qxb4 {[%emt 0:00:07]} (18... Qa1+ $2 19. Kd2 Qxb2 20. Bd3 $18 (20. Rb1 Bc3+ 21. Kd3 Qa3 $16)) 19. Rd3 $1 {[%emt 0:01:15] Threatens to win with b3.} (19. c3 $2 Bxc3 $1 {[%mdl 512]} 20. Rd2 (20. bxc3 $2 Qxc3+ 21. Kb1 Qb3+ 22. Kc1 Rac8+ 23. Bc4 Bxc4 $19) 20... Bxd2+ 21. Bxd2 Qxb6 $19) 19... Qxb2+ {[%emt 0:02:54]} 20. Kd2 {[%emt 0:02:01][%cal Bc1d2,Bd2e1,Be1f1,Bf1g2][%mdl 32] next Rd1 is good for White.} Qb4+ {[%emt 0:00:17]} 21. c3 {[%emt 0:01:36]} Qb2+ {[%emt 0:00:25]} 22. Ke1 {[%emt 0:00:09] Hoping for h4.} a5 $1 {[%emt 0:02:27][%cal Oa5a4]} (22... Bxc3+ 23. Kf1 $16) 23. Nxa8 {[%emt 0:05:23]} Bc4 $1 {[%emt 0:05:08] [#] aiming for ...Qb1+.} 24. Bd4 $1 {[%emt 0:10:23]} Bxd3 {[%emt 0:01:40]} 25. Qxd3 {[%emt 0:00:11]} Bxd4 {[%emt 0:02:05]} 26. cxd4 {[%emt 0:00:42][%cal Oe1f1]} a4 $2 {[%emt 0:01:39] [#] White leaves nothing to chance now.} (26... Rxa8 $11 27. Kf1 Rc8) 27. Kf1 $1 $18 {[%emt 0:02:08][%cal Of1g2]} a3 {[%emt 0:00:28] [#]} 28. Kg2 $1 {[%emt 0:01:36] Black must now prevent Rb1.} a2 {[%emt 0:00:05] Prevents Rb1.} 29. Nc7 {[%emt 0:02:18]} Rc8 $2 {[%emt 0:02:19] [#]} (29... a1=Q {was necessary.} 30. Rxa1 Qxa1) 30. Qb5 $1 {[%emt 0:00:31]} a1=Q {[%emt 0:02:32]} 31. Rxa1 {[%emt 0:00:09]} Qxa1 {[%emt 0:00:02]} 32. Qxb7 {[%emt 0:00:08]} Rf8 {[%emt 0:00:11]} 33. Nb5 {[%emt 0:02:51]} e6 {[%emt 0:01:06]} (33... Qa2 {is a better defense.}) 34. Qc6 {[%emt 0:00:53]} (34. Nxd6 Qxd4 35. Qe7 h6) 34... Qa8 {[%emt 0:01:03]} 35. d5 {[%emt 0:03:43]} (35. Qxd6 $6 Qxe4+ 36. Bf3 Qb1 $18) 35... exd5 {[%emt 0:00:50]} 36. exd5 {[%emt 0:00:17]} (36. Qxd5 Qxd5 37. exd5 Rd8 $16) 36... Rc8 {[%emt 0:00:07]} 37. Qxd6 {[%emt 0:01:43]} Rc2 {[%emt 0:00:01]} 38. Bf3 {[%emt 0:02:28]} Qe8 {[%emt 0:00:10]} 39. Nd4 {[%emt 0:02:57]} Rd2 {[%emt 0:00:07]} (39... Ra2 $142 40. Nc6 Qe3) 40. Nc6 {[%emt 0:00:00] Strongly threatening Ne7+.} Qe3 {[%emt 0:00:00]} 41. Qg3 {[%emt 0:03:39]} Kg7 {[%emt 0:02:59]} (41... f6 $142 42. Na5 Qe5 43. Qxe5 fxe5) 42. Ne5 {[%emt 0:04:34] Nc4 is the strong threat.} Qd4 {[%emt 0:00:44] Prevents Nc4.} 43. g5 {[%emt 0:01:23]} Ra2 {[%emt 0:02:43]} 44. Ng4 {[%emt 0:00:47]} Ra1 {[%emt 0:01:12]} 45. Qh4 {[%emt 0:04:32]} Qb4 {[%emt 0:01:12]} 46. Qh6+ {[%emt 0:02:46]} (46. d6 $142 Qxd6 47. Nf6 Kf8 48. Qxh7 Ke7 49. Qh8 Qd8 50. Nd5+ Qxd5 51. Qf6+ Kd7 52. Bxd5) 46... Kh8 {[%emt 0:00:01]} 47. Ne5 {[%emt 0:01:22] White wants to mate with d6.} (47. Nf6 Rg1+ 48. Kh2 (48. Kxg1 Qe1+ 49. Kh2 Qg1+ 50. Kxg1 $11) 48... Qb8+ 49. d6 (49. Kxg1 Qh2+ 50. Kxh2 $11) 49... Qxd6+ 50. Kxg1 Qh2+ 51. Kf1 Qxf2+ 52. Kxf2 $11) 47... Kg8 {[%emt 0:04:41]} 48. Nd7 {[%emt 0:00:20] Threatening mate with Nf6+.} Kh8 {[%emt 0:00:20]} 49. Nf8 {[%emt 0:00:24][%csl Gf8][%cal Rh6h7]} ({Stronger than} 49. Nf6 Rg1+ 50. Kh2 (50. Kxg1 Qe1+ 51. Kh2 Qg1+ 52. Kxg1 $11) 50... Qb8+ 51. d6 (51. Kxg1 Qh2+ 52. Kxh2 $11) 51... Qxd6+ 52. Kxg1 Qh2+ 53. Kf1 Qxf2+ 54. Kxf2 $11) 49... Kg8 {[%emt 0:01:02]} 50. Qxh7+ {[%emt 0:00:31] Weighted Error Value: White=0.15 (very precise) /Black=0.33} (50. Nxh7 $142 {[%cal Rh7f6]} Ra6 51. Nf6+ Rxf6 52. gxf6 Qf8 53. Qe3 Qd6 54. Qe7 Qf4 55. Qe8+ Kh7 56. Qxf7+ Kh6 57. Qg7+ Kg5 58. f7) 1-0